[Event "Early-Titled-Tuesday-Blitz-September-05-2023"]
[Site "Chess.com"]
[Date "2023.09.05"]
[Round "1"]
[White "Shield12"]
[Black "2k28Lakers"]
[Result "1-0"]
[WhiteElo "2948"]
[BlackElo "2509"]
[TimeControl "180+1"]
[EndTime "8:01:09 PDT"]
[Termination "Shield12 won by resignation"]

1. e4 {[%clk 0:03:00.9]} 1... e5 {[%clk 0:02:59.9]} 2. Nc3 {[%clk 0:03:01.1]}
2... Nf6 {[%clk 0:02:59.9]} 3. Nf3 {[%clk 0:03:02]} 3... Nc6 {[%clk 0:03:00.2]}
4. Be2 {[%clk 0:03:02.6]} 4... Bc5 {[%clk 0:02:59.9]} 5. Nxe5 {[%clk 0:03:02.8]}
5... Nxe5 {[%clk 0:02:56.9]} 6. d4 {[%clk 0:03:03.3]} 6... Bd6 {[%clk
0:02:57.6]} 7. dxe5 {[%clk 0:03:03.7]} 7... Bxe5 {[%clk 0:02:58.5]} 8. Nb5
{[%clk 0:03:04.6]} 8... c6 {[%clk 0:02:55.8]} 9. Nd6+ {[%clk 0:03:04.3]} 9...
Bxd6 {[%clk 0:02:55.5]} 10. Qxd6 {[%clk 0:03:05.2]} 10... Qe7 {[%clk 0:02:55.9]}
11. Qxe7+ {[%clk 0:03:02.2]} 11... Kxe7 {[%clk 0:02:56.8]} 12. e5 {[%clk
0:03:02.9]} 12... Nd5 {[%clk 0:02:56.6]} 13. b3 {[%clk 0:03:02.2]} 13... d6
{[%clk 0:02:54.8]} 14. Ba3 {[%clk 0:03:01]} 14... c5 {[%clk 0:02:46.8]} 15.
exd6+ {[%clk 0:02:57.5]} 15... Kxd6 {[%clk 0:02:46.2]} 16. O-O-O {[%clk
0:02:57.6]} 16... Kc6 {[%clk 0:02:45.9]} 17. Bf3 {[%clk 0:02:57]} 1-0

[Event "Early-Titled-Tuesday-Blitz-September-05-2023"]
[Site "Chess.com"]
[Date "2023.09.05"]
[Round "1"]
[White "MikeSailer"]
[Black "djano"]
[Result "0-1"]
[WhiteElo "2174"]
[BlackElo "2577"]
[TimeControl "180+1"]
[EndTime "8:02:02 PDT"]
[Termination "djano won by resignation"]

1. d4 {[%clk 0:02:59.2]} 1... Nf6 {[%clk 0:02:59]} 2. Nc3 {[%clk 0:02:55.8]}
2... d5 {[%clk 0:02:57.2]} 3. Bf4 {[%clk 0:02:56.1]} 3... e6 {[%clk 0:02:55.1]}
4. e3 {[%clk 0:02:50.2]} 4... a6 {[%clk 0:02:53.7]} 5. a3 {[%clk 0:02:50.1]}
5... c5 {[%clk 0:02:53.6]} 6. Nf3 {[%clk 0:02:49.4]} 6... Nc6 {[%clk 0:02:53.5]}
7. Qd2 {[%clk 0:02:39.4]} 7... b5 {[%clk 0:02:49.3]} 8. h3 {[%clk 0:02:29.1]}
8... Qb6 {[%clk 0:02:43.4]} 9. Be2 {[%clk 0:02:15.7]} 9... cxd4 {[%clk
0:02:41.2]} 10. exd4 {[%clk 0:02:14.3]} 10... Ne4 {[%clk 0:02:37.9]} 11. O-O
{[%clk 0:02:08.7]} 11... Nxd2 {[%clk 0:02:37.5]} 0-1

[Event "Early-Titled-Tuesday-Blitz-September-05-2023"]
[Site "Chess.com"]
[Date "2023.09.05"]
[Round "1"]
[White "TimofeevAr"]
[Black "vidavi"]
[Result "1-0"]
[WhiteElo "2859"]
[BlackElo "2474"]
[TimeControl "180+1"]
[EndTime "8:02:22 PDT"]
[Termination "TimofeevAr won by resignation"]

1. c4 {[%clk 0:03:00.9]} 1... e5 {[%clk 0:02:59.6]} 2. e3 {[%clk 0:02:59.9]}
2... Nf6 {[%clk 0:02:59.2]} 3. Nc3 {[%clk 0:02:59.6]} 3... Bb4 {[%clk
0:02:57.2]} 4. Nge2 {[%clk 0:02:59.1]} 4... O-O {[%clk 0:02:56.8]} 5. a3 {[%clk
0:02:59]} 5... Bd6 {[%clk 0:02:53.8]} 6. Ng3 {[%clk 0:02:54.9]} 6... c6 {[%clk
0:02:52.3]} 7. Be2 {[%clk 0:02:50.1]} 7... Bc7 {[%clk 0:02:52.4]} 8. d4 {[%clk
0:02:47.7]} 8... d5 {[%clk 0:02:45.8]} 9. cxd5 {[%clk 0:02:43.2]} 9... Nxd5
{[%clk 0:02:43.2]} 10. O-O {[%clk 0:02:42.2]} 10... Be6 {[%clk 0:02:39]} 11.
Nce4 {[%clk 0:02:39.3]} 11... Nd7 {[%clk 0:02:36.2]} 12. dxe5 {[%clk 0:02:35.2]}
12... Bxe5 {[%clk 0:02:35.4]} 13. f4 {[%clk 0:02:34.4]} 13... f5 {[%clk
0:02:34.7]} 14. Ng5 {[%clk 0:02:33]} 1-0

[Event "Early-Titled-Tuesday-Blitz-September-05-2023"]
[Site "Chess.com"]
[Date "2023.09.05"]
[Round "1"]
[White "Nick12772"]
[Black "Let_it_be_1"]
[Result "0-1"]
[WhiteElo "2339"]
[BlackElo "2643"]
[TimeControl "180+1"]
[EndTime "8:03:27 PDT"]
[Termination "Let_it_be_1 won by resignation"]

1. Nf3 {[%clk 0:03:00.9]} 1... d5 {[%clk 0:02:59.6]} 2. g3 {[%clk 0:03:00.7]}
2... Nf6 {[%clk 0:02:58]} 3. Bg2 {[%clk 0:03:01.1]} 3... e6 {[%clk 0:02:58.2]}
4. O-O {[%clk 0:03:02]} 4... Be7 {[%clk 0:02:58.2]} 5. d4 {[%clk 0:03:02.4]}
5... O-O {[%clk 0:02:58.2]} 6. Nbd2 {[%clk 0:03:03.1]} 6... Nbd7 {[%clk
0:02:55.7]} 7. b3 {[%clk 0:03:02.2]} 7... c5 {[%clk 0:02:55.2]} 8. Bb2 {[%clk
0:03:02]} 8... b6 {[%clk 0:02:53.1]} 9. e3 {[%clk 0:03:01.4]} 9... Bb7 {[%clk
0:02:52.3]} 10. Re1 {[%clk 0:03:01.7]} 10... Rc8 {[%clk 0:02:50]} 11. c4 {[%clk
0:03:01.6]} 11... Qc7 {[%clk 0:02:47.7]} 12. Rc1 {[%clk 0:03:01]} 12... Qb8
{[%clk 0:02:47.6]} 13. Qc2 {[%clk 0:02:51.4]} 13... cxd4 {[%clk 0:02:41.2]} 14.
Bxd4 {[%clk 0:02:41.4]} 14... dxc4 {[%clk 0:02:40.7]} 15. bxc4 {[%clk
0:02:39.2]} 15... Nc5 {[%clk 0:02:28.3]} 16. Qb2 {[%clk 0:02:32.1]} 16... Nd3
{[%clk 0:02:26.4]} 17. Qa1 {[%clk 0:02:28.4]} 17... Nxe1 {[%clk 0:02:22.9]} 18.
Nxe1 {[%clk 0:02:29.3]} 18... Bxg2 {[%clk 0:02:20.3]} 19. Nxg2 {[%clk
0:02:30.2]} 19... Rfd8 {[%clk 0:02:16]} 20. Nf3 {[%clk 0:02:23.9]} 20... Ne8
{[%clk 0:02:15]} 21. Nf4 {[%clk 0:02:18.3]} 21... Bf6 {[%clk 0:02:05]} 22. Ne5
{[%clk 0:02:11.9]} 22... Qb7 {[%clk 0:01:41]} 23. Nh5 {[%clk 0:02:10.3]} 23...
Bxe5 {[%clk 0:01:40.6]} 24. Bxe5 {[%clk 0:02:09.7]} 24... f6 {[%clk 0:01:41.2]}
25. Bd4 {[%clk 0:02:01.8]} 25... e5 {[%clk 0:01:40.9]} 26. Bc3 {[%clk 0:02:02]}
26... g6 {[%clk 0:01:36.1]} 0-1

[Event "Early-Titled-Tuesday-Blitz-September-05-2023"]
[Site "Chess.com"]
[Date "2023.09.05"]
[Round "1"]
[White "MajorCoast"]
[Black "hakanazeri2"]
[Result "0-1"]
[WhiteElo "2301"]
[BlackElo "2624"]
[TimeControl "180+1"]
[EndTime "8:03:43 PDT"]
[Termination "hakanazeri2 won by resignation"]

1. d4 {[%clk 0:03:00.9]} 1... Nf6 {[%clk 0:02:55.3]} 2. Nf3 {[%clk 0:03:01.4]}
2... e6 {[%clk 0:02:55.5]} 3. Bf4 {[%clk 0:03:01.6]} 3... d5 {[%clk 0:02:56.4]}
4. e3 {[%clk 0:03:02.1]} 4... Bd6 {[%clk 0:02:57.1]} 5. Bg3 {[%clk 0:03:02.5]}
5... c5 {[%clk 0:02:57]} 6. c3 {[%clk 0:03:01.9]} 6... Qc7 {[%clk 0:02:56.6]} 7.
Bd3 {[%clk 0:03:01.9]} 7... Nbd7 {[%clk 0:02:55.7]} 8. Nbd2 {[%clk 0:03:01.9]}
8... e5 {[%clk 0:02:55.7]} 9. dxe5 {[%clk 0:03:01.9]} 9... Nxe5 {[%clk
0:02:56.6]} 10. Nxe5 {[%clk 0:03:02.3]} 10... Bxe5 {[%clk 0:02:57.5]} 11. Bxe5
{[%clk 0:03:03.1]} 11... Qxe5 {[%clk 0:02:58.4]} 12. Nf3 {[%clk 0:03:03.9]}
12... Qe7 {[%clk 0:02:57.9]} 13. O-O {[%clk 0:03:04.1]} 13... O-O {[%clk
0:02:58]} 14. h3 {[%clk 0:02:59]} 14... h6 {[%clk 0:02:57.7]} 15. Re1 {[%clk
0:02:58.9]} 15... b6 {[%clk 0:02:57.2]} 16. Nd2 {[%clk 0:02:58.6]} 16... Bb7
{[%clk 0:02:57.3]} 17. Rc1 {[%clk 0:02:50.5]} 17... Rad8 {[%clk 0:02:49.8]} 18.
c4 {[%clk 0:02:48.8]} 18... dxc4 {[%clk 0:02:45.9]} 19. Bxc4 {[%clk 0:02:45.1]}
19... Ne4 {[%clk 0:02:41.9]} 20. Rc2 {[%clk 0:02:34.8]} 20... Qd7 {[%clk
0:02:35.8]} 21. Re2 {[%clk 0:02:24.3]} 21... b5 {[%clk 0:02:32.7]} 22. Qc1
{[%clk 0:01:47]} 22... bxc4 {[%clk 0:02:31.4]} 23. Nxc4 {[%clk 0:01:42.8]} 23...
Ba6 {[%clk 0:02:26.6]} 24. Re1 {[%clk 0:01:31.2]} 24... Qf5 {[%clk 0:02:23.6]}
25. Rd1 {[%clk 0:01:18.7]} 25... Bxc4 {[%clk 0:02:18.4]} 0-1

[Event "Early-Titled-Tuesday-Blitz-September-05-2023"]
[Site "Chess.com"]
[Date "2023.09.05"]
[Round "1"]
[White "WelshTiger"]
[Black "vladislavkovalev"]
[Result "0-1"]
[WhiteElo "2492"]
[BlackElo "2917"]
[TimeControl "180+1"]
[EndTime "8:03:47 PDT"]
[Termination "vladislavkovalev won by checkmate"]

1. e4 {[%clk 0:03:00.9]} 1... e5 {[%clk 0:02:59.7]} 2. Nf3 {[%clk 0:03:00.9]}
2... Nc6 {[%clk 0:03:00.2]} 3. d4 {[%clk 0:02:57.6]} 3... exd4 {[%clk
0:02:59.8]} 4. Bc4 {[%clk 0:02:57.8]} 4... Nf6 {[%clk 0:02:58.8]} 5. e5 {[%clk
0:02:58.1]} 5... d5 {[%clk 0:02:58.9]} 6. Bb5 {[%clk 0:02:58.7]} 6... Nd7 {[%clk
0:02:59.5]} 7. O-O {[%clk 0:02:57.8]} 7... Be7 {[%clk 0:02:59.8]} 8. Bxc6 {[%clk
0:02:55.4]} 8... bxc6 {[%clk 0:03:00.7]} 9. Nxd4 {[%clk 0:02:55.7]} 9... Nb8
{[%clk 0:03:01.5]} 10. Nc3 {[%clk 0:02:56.1]} 10... c5 {[%clk 0:02:58.3]} 11.
Ndb5 {[%clk 0:02:56.1]} 11... c6 {[%clk 0:02:49.8]} 12. Nd6+ {[%clk 0:02:52]}
12... Bxd6 {[%clk 0:02:50.3]} 13. exd6 {[%clk 0:02:51.4]} 13... O-O {[%clk
0:02:50.9]} 14. Bf4 {[%clk 0:02:47.8]} 14... Be6 {[%clk 0:02:48.3]} 15. Na4
{[%clk 0:02:41.5]} 15... Nd7 {[%clk 0:02:48.8]} 16. c3 {[%clk 0:02:35.6]} 16...
Qa5 {[%clk 0:02:29.7]} 17. Re1 {[%clk 0:02:32.7]} 17... Rab8 {[%clk 0:02:26.5]}
18. b3 {[%clk 0:02:17.7]} 18... Rfe8 {[%clk 0:02:18.7]} 19. Qd2 {[%clk
0:02:11.9]} 19... c4 {[%clk 0:02:12]} 20. Rab1 {[%clk 0:02:03.8]} 20... c5
{[%clk 0:02:09.1]} 21. Qc2 {[%clk 0:01:52.2]} 21... d4 {[%clk 0:01:44.8]} 22.
cxd4 {[%clk 0:01:36.2]} 22... cxb3 {[%clk 0:01:44.3]} 23. axb3 {[%clk
0:01:36.3]} 23... Bxb3 {[%clk 0:01:42.5]} 24. Rxb3 {[%clk 0:01:34.4]} 24...
Qxe1# {[%clk 0:01:40.2]} 0-1

[Event "Early-Titled-Tuesday-Blitz-September-05-2023"]
[Site "Chess.com"]
[Date "2023.09.05"]
[Round "1"]
[White "TomsKantans"]
[Black "InitiatingASC"]
[Result "1-0"]
[WhiteElo "2635"]
[BlackElo "2325"]
[TimeControl "180+1"]
[EndTime "8:03:53 PDT"]
[Termination "TomsKantans won by resignation"]

1. e4 {[%clk 0:03:00.2]} 1... c5 {[%clk 0:02:48]} 2. Nf3 {[%clk 0:02:56.2]} 2...
Nc6 {[%clk 0:02:46]} 3. Bb5 {[%clk 0:02:56]} 3... Nf6 {[%clk 0:02:44.1]} 4. Nc3
{[%clk 0:02:53.1]} 4... g6 {[%clk 0:02:43]} 5. e5 {[%clk 0:02:49.9]} 5... Ng4
{[%clk 0:02:41.9]} 6. Bxc6 {[%clk 0:02:50.1]} 6... bxc6 {[%clk 0:02:39.9]} 7.
O-O {[%clk 0:02:48.7]} 7... Bg7 {[%clk 0:02:39.4]} 8. Re1 {[%clk 0:02:48.8]}
8... O-O {[%clk 0:02:38.4]} 9. h3 {[%clk 0:02:31.7]} 9... Nh6 {[%clk 0:02:35.5]}
10. Ne4 {[%clk 0:02:29.1]} 10... d6 {[%clk 0:02:28]} 11. d4 {[%clk 0:02:23.1]}
11... cxd4 {[%clk 0:02:18.5]} 12. exd6 {[%clk 0:02:17.1]} 12... Nf5 {[%clk
0:02:01.8]} 13. dxe7 {[%clk 0:02:04.6]} 13... Nxe7 {[%clk 0:02:01.9]} 14. Bg5
{[%clk 0:02:00.8]} 14... Re8 {[%clk 0:01:51]} 15. Nf6+ {[%clk 0:01:57.4]} 15...
Bxf6 {[%clk 0:01:45.3]} 16. Bxf6 {[%clk 0:01:58.3]} 16... c5 {[%clk 0:01:45.6]}
17. Qd2 {[%clk 0:01:44.7]} 17... Qd6 {[%clk 0:01:41.7]} 18. Qg5 {[%clk
0:01:40.9]} 18... Be6 {[%clk 0:01:38.2]} 19. Be5 {[%clk 0:01:34.7]} 1-0

[Event "Early-Titled-Tuesday-Blitz-September-05-2023"]
[Site "Chess.com"]
[Date "2023.09.05"]
[Round "1"]
[White "ShiroglanTalibov"]
[Black "aakankshachess"]
[Result "1-0"]
[WhiteElo "2779"]
[BlackElo "2426"]
[TimeControl "180+1"]
[EndTime "8:04:32 PDT"]
[Termination "ShiroglanTalibov won by resignation"]

1. e4 {[%clk 0:03:00.9]} 1... e5 {[%clk 0:02:58.6]} 2. Nf3 {[%clk 0:03:00.9]}
2... Nc6 {[%clk 0:02:58.7]} 3. Bb5 {[%clk 0:03:00.8]} 3... a6 {[%clk 0:02:57.6]}
4. Ba4 {[%clk 0:03:01]} 4... Nf6 {[%clk 0:02:57]} 5. d4 {[%clk 0:03:01.1]} 5...
b5 {[%clk 0:02:26.1]} 6. Bb3 {[%clk 0:02:56.5]} 6... Bd6 {[%clk 0:02:02.8]} 7.
dxe5 {[%clk 0:02:48.8]} 7... Nxe5 {[%clk 0:02:00.8]} 8. Nxe5 {[%clk 0:02:47.5]}
8... Bxe5 {[%clk 0:02:00.7]} 9. f4 {[%clk 0:02:48.1]} 9... Qe7 {[%clk
0:01:55.6]} 10. fxe5 {[%clk 0:02:46.7]} 10... Qxe5 {[%clk 0:01:55.8]} 11. O-O
{[%clk 0:02:46.8]} 11... O-O {[%clk 0:01:51.1]} 12. Nc3 {[%clk 0:02:45.6]} 12...
Bb7 {[%clk 0:01:22.9]} 13. Bf4 {[%clk 0:02:36.1]} 13... Qc5+ {[%clk 0:01:21.2]}
14. Kh1 {[%clk 0:02:36.3]} 14... b4 {[%clk 0:01:11.3]} 15. Nd5 {[%clk 0:02:36]}
15... Nxe4 {[%clk 0:01:11.1]} 16. Be3 {[%clk 0:02:29.4]} 16... Qd6 {[%clk
0:00:59.8]} 17. Qd4 {[%clk 0:02:21]} 17... Rae8 {[%clk 0:00:43.1]} 18. Rae1
{[%clk 0:02:18.4]} 18... c5 {[%clk 0:00:41.3]} 19. Qd1 {[%clk 0:02:16.1]} 19...
Qg6 {[%clk 0:00:29.7]} 20. Bc4 {[%clk 0:02:10.9]} 20... Re5 {[%clk 0:00:29.2]}
21. Bf4 {[%clk 0:02:08.4]} 21... Rh5 {[%clk 0:00:29.1]} 22. Ne7+ {[%clk
0:02:08]} 1-0

[Event "Early-Titled-Tuesday-Blitz-September-05-2023"]
[Site "Chess.com"]
[Date "2023.09.05"]
[Round "1"]
[White "Kapitan_Bayan"]
[Black "ayanakhmetov"]
[Result "0-1"]
[WhiteElo "2205"]
[BlackElo "2589"]
[TimeControl "180+1"]
[EndTime "8:04:43 PDT"]
[Termination "ayanakhmetov won by resignation"]

1. e4 {[%clk 0:02:59.8]} 1... e6 {[%clk 0:02:58.7]} 2. d4 {[%clk 0:02:57]} 2...
d5 {[%clk 0:02:59.2]} 3. Nc3 {[%clk 0:02:56.2]} 3... Bb4 {[%clk 0:02:58.6]} 4.
e5 {[%clk 0:02:55.7]} 4... c5 {[%clk 0:02:58.8]} 5. a3 {[%clk 0:02:56.3]} 5...
Bxc3+ {[%clk 0:02:55.9]} 6. bxc3 {[%clk 0:02:57.2]} 6... Nc6 {[%clk 0:02:56.2]}
7. Qg4 {[%clk 0:02:52.3]} 7... g6 {[%clk 0:02:56.2]} 8. h4 {[%clk 0:02:42.5]}
8... h6 {[%clk 0:02:55.9]} 9. Nf3 {[%clk 0:02:34.8]} 9... Qa5 {[%clk 0:02:53.5]}
10. Bd2 {[%clk 0:02:33.8]} 10... c4 {[%clk 0:02:54]} 11. Be2 {[%clk 0:02:18.2]}
11... Bd7 {[%clk 0:02:50.4]} 12. O-O {[%clk 0:02:13.4]} 12... O-O-O {[%clk
0:02:47.7]} 13. Nh2 {[%clk 0:02:06.1]} 13... Rf8 {[%clk 0:02:10.4]} 14. f4
{[%clk 0:01:55.8]} 14... Nxd4 {[%clk 0:02:08.1]} 15. Ra2 {[%clk 0:01:23.5]}
15... h5 {[%clk 0:01:55]} 16. cxd4 {[%clk 0:01:17.4]} 16... Qxd2 {[%clk
0:01:55.9]} 17. Qf3 {[%clk 0:01:16.9]} 17... Qxd4+ {[%clk 0:01:56]} 18. Kh1
{[%clk 0:01:15]} 18... Nh6 {[%clk 0:01:52.5]} 19. c3 {[%clk 0:01:13]} 19... Qc5
{[%clk 0:01:48.2]} 20. Rb1 {[%clk 0:01:03.3]} 20... Nf5 {[%clk 0:01:45.2]} 21.
Rab2 {[%clk 0:00:59]} 21... Bc6 {[%clk 0:01:45]} 0-1

[Event "Early-Titled-Tuesday-Blitz-September-05-2023"]
[Site "Chess.com"]
[Date "2023.09.05"]
[Round "1"]
[White "alpltl"]
[Black "Diaschess88"]
[Result "0-1"]
[WhiteElo "2328"]
[BlackElo "2639"]
[TimeControl "180+1"]
[EndTime "8:04:45 PDT"]
[Termination "Diaschess88 won by checkmate"]

1. Nf3 {[%clk 0:03:00.3]} 1... Nf6 {[%clk 0:02:59.8]} 2. g3 {[%clk 0:03:00.3]}
2... g6 {[%clk 0:03:00]} 3. Bg2 {[%clk 0:03:00.4]} 3... Bg7 {[%clk 0:03:00.2]}
4. O-O {[%clk 0:03:01.3]} 4... O-O {[%clk 0:03:00.2]} 5. d3 {[%clk 0:03:01.9]}
5... c5 {[%clk 0:02:59.2]} 6. Nbd2 {[%clk 0:03:02.1]} 6... d6 {[%clk 0:02:59.3]}
7. e4 {[%clk 0:03:02.3]} 7... Nc6 {[%clk 0:02:59.1]} 8. a4 {[%clk 0:03:01.2]}
8... Rb8 {[%clk 0:02:58.9]} 9. c3 {[%clk 0:02:51.9]} 9... a6 {[%clk 0:02:56]}
10. Re1 {[%clk 0:02:51.1]} 10... Nd7 {[%clk 0:02:54.5]} 11. Qc2 {[%clk
0:02:43.6]} 11... b5 {[%clk 0:02:53.5]} 12. axb5 {[%clk 0:02:44.4]} 12... axb5
{[%clk 0:02:54.2]} 13. Nf1 {[%clk 0:02:39.4]} 13... b4 {[%clk 0:02:51.7]} 14.
Bd2 {[%clk 0:02:39.5]} 14... Bb7 {[%clk 0:02:39.9]} 15. Ne3 {[%clk 0:02:38.4]}
15... Nb6 {[%clk 0:02:39.7]} 16. h4 {[%clk 0:02:34.8]} 16... h5 {[%clk
0:02:31.8]} 17. Kh2 {[%clk 0:02:28]} 17... e6 {[%clk 0:02:30.3]} 18. Nc4 {[%clk
0:02:21.9]} 18... Nxc4 {[%clk 0:02:03.2]} 19. dxc4 {[%clk 0:02:22.8]} 19... Ne5
{[%clk 0:02:02.6]} 20. Nxe5 {[%clk 0:02:18.8]} 20... Bxe5 {[%clk 0:02:03.5]} 21.
Bh6 {[%clk 0:02:14.1]} 21... Re8 {[%clk 0:02:00]} 22. f4 {[%clk 0:02:13.7]}
22... Bh8 {[%clk 0:01:57.4]} 23. Rad1 {[%clk 0:02:12.2]} 23... bxc3 {[%clk
0:01:46.3]} 24. bxc3 {[%clk 0:02:11.7]} 24... Kh7 {[%clk 0:01:44.2]} 25. Bg5
{[%clk 0:02:09.9]} 25... f6 {[%clk 0:01:44.3]} 26. e5 {[%clk 0:02:09.9]} 26...
fxg5 {[%clk 0:01:42.8]} 27. Rxd6 {[%clk 0:02:09.3]} 27... Qc7 {[%clk 0:01:36]}
28. hxg5 {[%clk 0:02:00.7]} 28... Bxg2 {[%clk 0:01:33.8]} 29. Qxg2 {[%clk
0:01:58.7]} 29... Bg7 {[%clk 0:01:31]} 30. Rc6 {[%clk 0:01:54.8]} 30... Qa5
{[%clk 0:01:27.6]} 31. Rd1 {[%clk 0:01:51.6]} 31... Re7 {[%clk 0:01:22.6]} 32.
Rd3 {[%clk 0:01:47.2]} 32... Qa3 {[%clk 0:01:19.6]} 33. Kh3 {[%clk 0:01:40.7]}
33... Rb2 {[%clk 0:01:18]} 34. Qf3 {[%clk 0:01:38.9]} 34... Qa2 {[%clk
0:01:14.5]} 35. g4 {[%clk 0:01:36.3]} 35... Rh2+ {[%clk 0:01:14]} 36. Kg3 {[%clk
0:01:36.4]} 36... h4# {[%clk 0:01:14.6]} 0-1

[Event "Early-Titled-Tuesday-Blitz-September-05-2023"]
[Site "Chess.com"]
[Date "2023.09.05"]
[Round "1"]
[White "binbin239"]
[Black "LUISMIGUELOV"]
[Result "0-1"]
[WhiteElo "2545"]
[BlackElo "2078"]
[TimeControl "180+1"]
[EndTime "8:04:56 PDT"]
[Termination "LUISMIGUELOV won by checkmate"]

1. d4 {[%clk 0:02:59.6]} 1... d5 {[%clk 0:02:58.7]} 2. c4 {[%clk 0:02:59.8]}
2... c6 {[%clk 0:02:55.7]} 3. Nf3 {[%clk 0:02:59.5]} 3... Nf6 {[%clk 0:02:55.4]}
4. Qc2 {[%clk 0:03:00.2]} 4... g6 {[%clk 0:02:51.6]} 5. Bf4 {[%clk 0:03:00.1]}
5... Bf5 {[%clk 0:02:49.7]} 6. Qb3 {[%clk 0:02:59.9]} 6... Qb6 {[%clk
0:02:49.5]} 7. e3 {[%clk 0:03:00.6]} 7... Qxb3 {[%clk 0:02:48.4]} 8. axb3 {[%clk
0:03:01.5]} 8... a6 {[%clk 0:02:48.1]} 9. Nc3 {[%clk 0:03:00.7]} 9... Nbd7
{[%clk 0:02:46.2]} 10. h3 {[%clk 0:03:01.3]} 10... dxc4 {[%clk 0:02:36.3]} 11.
bxc4 {[%clk 0:03:00.8]} 11... h5 {[%clk 0:02:36]} 12. Be2 {[%clk 0:02:58.4]}
12... Bg7 {[%clk 0:02:35.6]} 13. Ne5 {[%clk 0:02:56.3]} 13... Nxe5 {[%clk
0:02:33.4]} 14. Bxe5 {[%clk 0:02:56.3]} 14... O-O {[%clk 0:02:32.3]} 15. Na4
{[%clk 0:02:53.3]} 15... Ne4 {[%clk 0:02:30.8]} 16. Bxg7 {[%clk 0:02:51.1]}
16... Kxg7 {[%clk 0:02:29.3]} 17. O-O {[%clk 0:02:47]} 17... Rfe8 {[%clk
0:02:19.7]} 18. f3 {[%clk 0:02:45.2]} 18... Nd6 {[%clk 0:02:18]} 19. e4 {[%clk
0:02:44.9]} 19... Be6 {[%clk 0:02:15.6]} 20. d5 {[%clk 0:02:45.2]} 20... cxd5
{[%clk 0:02:14.7]} 21. cxd5 {[%clk 0:02:45.4]} 21... Bd7 {[%clk 0:02:13.4]} 22.
Nb6 {[%clk 0:02:43.7]} 22... Rad8 {[%clk 0:02:13.1]} 23. Rfc1 {[%clk 0:02:44.3]}
23... Bb5 {[%clk 0:02:12.3]} 24. Kf2 {[%clk 0:02:42]} 24... Bxe2 {[%clk
0:02:11.1]} 25. Kxe2 {[%clk 0:02:42.9]} 25... Nb5 {[%clk 0:02:08.5]} 26. Ra4
{[%clk 0:02:08.2]} 26... e6 {[%clk 0:02:06.5]} 27. Kf2 {[%clk 0:02:08.1]} 27...
exd5 {[%clk 0:02:06.3]} 28. Nxd5 {[%clk 0:02:07.4]} 28... f5 {[%clk 0:02:01.6]}
29. Nc7 {[%clk 0:02:02.8]} 29... Re7 {[%clk 0:01:44.2]} 30. Nxb5 {[%clk
0:02:01.3]} 30... axb5 {[%clk 0:01:43.5]} 31. Rb4 {[%clk 0:02:01.9]} 31... fxe4
{[%clk 0:01:42.8]} 32. fxe4 {[%clk 0:02:01.7]} 32... Re5 {[%clk 0:01:32.8]} 33.
Rc7+ {[%clk 0:01:59.6]} 33... Kh6 {[%clk 0:01:24.9]} 34. Rxb7 {[%clk 0:01:59.6]}
34... Rd2+ {[%clk 0:01:21.3]} 35. Kf3 {[%clk 0:01:59.8]} 35... Rg5 {[%clk
0:01:17]} 36. g4 {[%clk 0:01:47.6]} 36... hxg4+ {[%clk 0:01:16.2]} 37. hxg4
{[%clk 0:01:47.4]} 37... Rd3+ {[%clk 0:01:16.1]} 38. Kf4 {[%clk 0:01:47.5]}
38... Rc5 {[%clk 0:01:01.5]} 39. R4xb5 {[%clk 0:01:44.4]} 39... g5# {[%clk
0:01:01.4]} 0-1

[Event "Early-Titled-Tuesday-Blitz-September-05-2023"]
[Site "Chess.com"]
[Date "2023.09.05"]
[Round "1"]
[White "kaanadayhamle"]
[Black "wqws"]
[Result "0-1"]
[WhiteElo "2349"]
[BlackElo "2654"]
[TimeControl "180+1"]
[EndTime "8:04:58 PDT"]
[Termination "wqws won by resignation"]

1. e4 {[%clk 0:02:59.8]} 1... c5 {[%clk 0:02:59]} 2. Nf3 {[%clk 0:02:59.8]} 2...
d6 {[%clk 0:02:59.6]} 3. Bb5+ {[%clk 0:02:59.7]} 3... Nd7 {[%clk 0:02:59.4]} 4.
c4 {[%clk 0:02:59.8]} 4... a6 {[%clk 0:02:57.9]} 5. Ba4 {[%clk 0:03:00.1]} 5...
e5 {[%clk 0:02:57.8]} 6. O-O {[%clk 0:02:59.9]} 6... Nf6 {[%clk 0:02:57.3]} 7.
Nc3 {[%clk 0:03:00]} 7... g6 {[%clk 0:02:57.3]} 8. d3 {[%clk 0:03:00.2]} 8...
Bg7 {[%clk 0:02:57.6]} 9. h3 {[%clk 0:03:00.4]} 9... O-O {[%clk 0:02:58.1]} 10.
Be3 {[%clk 0:03:00.5]} 10... Rb8 {[%clk 0:02:51.9]} 11. Qd2 {[%clk 0:02:59.1]}
11... Ne8 {[%clk 0:02:38.3]} 12. Bh6 {[%clk 0:02:58.7]} 12... Nc7 {[%clk
0:02:37]} 13. Bxg7 {[%clk 0:02:58.4]} 13... Kxg7 {[%clk 0:02:37.6]} 14. Bc2
{[%clk 0:02:53.6]} 14... b5 {[%clk 0:02:36.2]} 15. b3 {[%clk 0:02:54.2]} 15...
b4 {[%clk 0:02:31.2]} 16. Nd5 {[%clk 0:02:54.4]} 16... Nxd5 {[%clk 0:02:26.1]}
17. exd5 {[%clk 0:02:54.9]} 17... Nf6 {[%clk 0:02:23.7]} 18. Ng5 {[%clk
0:02:54]} 18... h6 {[%clk 0:02:21.9]} 19. Ne4 {[%clk 0:02:53.9]} 19... Nh5
{[%clk 0:02:17.7]} 20. Rae1 {[%clk 0:02:34.6]} 20... f5 {[%clk 0:02:07.5]} 21.
Ng3 {[%clk 0:02:34.6]} 21... Nf4 {[%clk 0:02:06.7]} 22. Ne2 {[%clk 0:02:31.1]}
22... Nxe2+ {[%clk 0:02:04.6]} 23. Qxe2 {[%clk 0:02:32]} 23... f4 {[%clk
0:02:04.9]} 24. Bd1 {[%clk 0:02:31.9]} 24... f3 {[%clk 0:02:03.7]} 25. Qe3
{[%clk 0:02:28.8]} 25... fxg2 {[%clk 0:02:03.7]} 26. Kxg2 {[%clk 0:02:29.7]}
26... Qh4 {[%clk 0:02:03.4]} 27. Qg3 {[%clk 0:02:25.3]} 27... Qxg3+ {[%clk
0:01:52.9]} 28. fxg3 {[%clk 0:02:22.5]} 28... Bf5 {[%clk 0:01:53.5]} 29. Be2
{[%clk 0:02:22.3]} 29... a5 {[%clk 0:01:53.7]} 30. g4 {[%clk 0:02:21.5]} 30...
Bd7 {[%clk 0:01:53.4]} 31. Bf3 {[%clk 0:02:22.1]} 31... a4 {[%clk 0:01:52.1]}
32. Be4 {[%clk 0:02:19.1]} 32... Rxf1 {[%clk 0:01:39.2]} 33. Rxf1 {[%clk
0:02:20]} 33... Ra8 {[%clk 0:01:39.7]} 34. Kg3 {[%clk 0:02:16]} 34... a3 {[%clk
0:01:32.2]} 35. h4 {[%clk 0:02:12.6]} 35... Rf8 {[%clk 0:01:26.5]} 36. Rxf8
{[%clk 0:02:11.6]} 36... Kxf8 {[%clk 0:01:27.4]} 37. Bxg6 {[%clk 0:02:08.4]}
37... Ba4 {[%clk 0:01:25.7]} 38. bxa4 {[%clk 0:01:35.9]} 38... b3 {[%clk
0:01:25.7]} 39. a5 {[%clk 0:01:36.8]} 39... bxa2 {[%clk 0:01:20.8]} 40. a6
{[%clk 0:01:37.2]} 40... a1=Q {[%clk 0:01:20.3]} 41. a7 {[%clk 0:01:37.3]} 41...
Qe1+ {[%clk 0:01:20.3]} 42. Kf3 {[%clk 0:01:34.5]} 42... Qa5 {[%clk 0:01:20.8]}
0-1